Cogmind - Beta 14 *** ADVENTURER MODE // 2024.11.11 @ 20:24:36 // Winter2019/RPGLIKE Player: Noname Result: Heading to fleet! Performance ------------- Evolutions (9) 4500 Regions Visited (16) 3200 Robots Destroyed (274) 1370 Value Destroyed (15656) 15656 Prototype IDs (49) 980 Alien Tech Used (1) 200 Bonus (11301) 11301 TOTAL SCORE: 37207 Bonus ------- High Alert Combat Kills 33 Follower Combat Kills 1868 Registered with UFD 300 Built Enhanced Grunts 300 A7 Reached Mainframe 300 Used Core Reset Matrix 3000 Scanned by Researcher 500 Met Sigix 2000 Win 3000 Cogmind --------- Core Integrity 809/1250 Matter 300/300 Energy 825/840 System Corruption 0% Temperature Cool (10) Movement Walking (118) Location To Fleet Rendezvous Parts ------- > --- POWER (3) -------- Heavy Antimatter Reactor Quantum Reactor Quantum Reactor > --- PROPULSION (5) --- Biometal Leg Centrium Leg Centrium Leg High-density Centrium Leg High-density Centrium Leg > --- UTILITY (12) ----- Advanced Trap Scanner Long-range Sensor Array Advanced Signal Interpreter Advanced Terrain Scanner Improved Armor Integrity Analyzer Experimental Actuator Array Advanced Transmission Jammer Layered Medium Armor Plating Advanced Shield Generator Advanced Component Analysis Suite Advanced Dynamic Insulation System Advanced System Restoration Module > --- WEAPON (5) ------- Gravity Flail Gravity Flail Plasma Sword Enhanced Force Lance Enhanced Force Lance > --- INVENTORY (6) ---- Nanoactuators Advanced Phase Shifter Graphene Brace Experimental Thermal Shield Phasing Sabre Phasing Sabre Peak State ------------ > --- POWER ------------ Heavy Antimatter Reactor Quantum Reactor Quantum Reactor > --- PROPULSION ------- Biometal Leg Centrium Leg Centrium Leg High-density Centrium Leg High-density Centrium Leg > --- UTILITY ---------- Advanced Trap Scanner Long-range Sensor Array Advanced Signal Interpreter Advanced Terrain Scanner Improved Armor Integrity Analyzer Advanced Weapon Cycler Advanced Actuator Array Advanced Transmission Jammer Advanced Phase Shifter Centrium Medium Armor Plating Advanced Dynamic Insulation System Advanced System Restoration Module > --- WEAPON ----------- Gravity Flail Gravity Flail Plasma Sword Force Lance Enhanced Force Lance > --- INVENTORY -------- Advanced Cooling System Nanoactuators Experimental Thermal Shield Advanced Shield Generator Phasing Sabre Phasing Sabre [Rating: 199] Favorites ----------- Power Quantum Reactor Engine Subdweller Power Source Power Core Neutrino Core Reactor Quantum Reactor Propulsion Myomer Leg Treads Spiked Treads Leg Myomer Leg Wheel Armored Huge Wheel Hover Unit Gravmag System Utility Advanced Signal Interpreter Device Advanced Terrain Scanner Processor Advanced Signal Interpreter Protection Centrium Medium Armor Plating Weapon Phasing Sabre Energy Gun Subdweller Laser Ballistic Gun Heavy Battle Rifle Launcher Subdweller Shrapnel Launcher Impact Weapon Gravity Flail Slashing Weapon Phasing Sabre Piercing Weapon Force Lance Build | -11 -10 -10 -10 -7 -7 -5 -5 -5 -5 -5 -4 -3 -3 -2 -2 -1 ------- Run | Yrd Mat Min Sub Rec Scr Fac Ext Cet Arc Hub Fac Res Qua Res Tes Acc Slots Evolved 21 | 5 . 2 1 2 2 5 2 . . . . . 1 . . 1 Power 2 | . . . . . 1 . 1 . . . . . . . . . Propulsion 4 | 1 . . . . . 2 1 . . . . . . . . . Utility 11 | 3 . 1 1 2 . 2 . . . . . . 1 . . 1 Weapon 4 | 1 . 1 . . 1 1 . . . . . . . . . . Parts Attached 277 | 2 4 3 20 13 10 16 9 1 . 2 29 14 41 25 28 60 Power 28 | . . . 5 3 2 2 2 . . . 3 2 4 3 . 2 Engine 8 | . . . 5 2 . 1 . . . . . . . . . . Core 6 | . . . . 1 2 1 2 . . . . . . . . . Reactor 14 | . . . . . . . . . . . 3 2 4 3 . 2 Propulsion 46 | 1 . . 4 2 . 5 3 . . . 7 . 6 4 10 4 Treads 1 | . . . 1 . . . . . . . . . . . . . Leg 39 | 1 . . 1 . . 4 3 . . . 6 . 6 4 10 4 Wheel 5 | . . . 2 1 . 1 . . . . 1 . . . . . Hover 1 | . . . . 1 . . . . . . . . . . . . Flight . | . . . . . . . . . . . . . . . . . Utility 173 | . 4 1 2 6 6 9 2 1 . 2 18 12 25 18 18 49 Device 145 | . 2 1 . 3 4 7 2 . . 2 18 10 21 16 12 47 Storage . | . . . . . . . . . . . . . . . . . Processor 7 | . 1 . . 1 2 . . . . . . . 2 1 . . Hackware . | . . . . . . . . . . . . . . . . . Protection 21 | . 1 . 2 2 . 2 . 1 . . . 2 2 1 6 2 Artifact . | . . . . . . . . . . . . . . . . . Weapon 30 | 1 . 2 9 2 2 . 2 . . . 1 . 6 . . 5 Energy Gun 3 | 1 . . 2 . . . . . . . . . . . . . Energy Cannon . | . . . . . . . . . . . . . . . . . Ballistic Gun 4 | . . 1 3 . . . . . . . . . . . . . Ballistic Cannon . | . . . . . . . . . . . . . . . . . Launcher 3 | . . 1 2 . . . . . . . . . . . . . Special Weapon . | . . . . . . . . . . . . . . . . . Impact Weapon 3 | . . . . 1 . . . . . . . . . . . 2 Slashing Weapon 11 | . . . 2 . 2 . 2 . . . 1 . 4 . . . Piercing Weapon 6 | . . . . 1 . . . . . . . . 2 . . 3 Special Melee Weapon . | . . . . . . . . . . . . . . . . . Unidentified Prototypes 17 | . . . . . . . 1 1 . . 3 1 6 . 3 2 Parts Lost 7 | . . . 1 1 . . . . . . . . . . 1 4 Power 1 | . . . . 1 . . . . . . . . . . . . Propulsion 1 | . . . . . . . . . . . . . . . . 1 Utility 5 | . . . 1 . . . . . . . . . . . 1 3 Weapon . | . . . . . . . . . . . . . . . . . Highest Loss Streak 2 | . . . 1 1 . . . . . . . . . . 1 2 To Critical Strikes 2 | . . . . . . . . . . . . . . . . 2 Average Slot Usage (%) 93 | . 75 96 87 86 85 91 93 95 95 95 95 94 99 99 99 99 Engine 2 | . 11 10 8 5 . 3 . . . . . . . . . . Core 3 | . . . . 1 7 6 11 13 13 13 7 . . . . . Reactor 5 | . . . . . . . . . . . 5 13 12 11 12 12 Leg 15 | . 22 20 6 2 . 13 18 21 21 21 20 21 20 19 19 19 Wheel 1 | . . . 2 4 6 1 . . . . . . . . . . Device 29 | . 11 20 16 23 34 33 31 30 30 31 34 33 35 29 29 37 Processor 7 | . 3 10 8 11 13 10 8 8 8 6 4 4 4 8 8 8 Protection 6 | . 5 10 12 9 6 6 4 4 4 4 4 4 4 7 7 2 Energy Gun 1 | . 11 10 8 2 . . . . . . . . . . . . Ballistic Gun 1 | . 11 10 8 3 . . . . . . . . . . . . Slashing Weapon 11 | . . . 6 7 14 15 16 17 17 17 17 17 12 12 12 7 Piercing Weapon 2 | . . . . 4 . . . . . . . . 7 8 8 8 Peak Build Rating 199 | 5 9 13 31 49 71 101 123 127 127 127 151 155 178 178 188 199 Average Rating 113 | 4 6 11 26 38 58 92 112 126 127 126 142 153 171 173 182 193 On Entrance 95 | 3 5 9 13 27 49 71 101 123 127 127 127 151 155 173 178 183 Naked Turns . | . . . . . . . . . . . . . . . . . Heaviest Build 121 | 8 11 16 42 41 46 57 80 80 79 86 100 102 116 118 121 118 Greatest Support 154 | 20 20 20 40 28 28 80 110 110 110 110 128 125 130 135 154 154 Greatest Overweight (x) 2 | . . . 2 1 1 1 . . . . . . 2 . 1 . Average Overweight (x) . | . . . . . 1 . . . . . . . . . . . Largest Inventory Capacity 6 | 1 1 2 2 4 4 5 5 5 6 6 6 6 6 6 6 6 Average Capacity 4 | . 1 1 2 2 4 4 5 5 5 6 6 6 6 6 6 6 Most Carried 6 | 1 1 1 2 4 4 5 5 5 6 6 6 6 6 6 6 6 Average Carried 4 | . 1 . 1 2 3 4 4 5 5 6 5 5 5 5 5 5 Final Capacity 6 | 1 1 2 2 4 4 5 5 5 6 6 6 6 6 6 6 6 Final Carried 6 | 1 1 1 2 4 4 5 5 5 6 6 6 6 6 6 5 6 Class Distribution -------------------- 60% | Hacker-Gladiator 17% | Commander-Gladiator 6% | Derelict-Mutant 5% | Subdweller-Mutant 4% | Mutant Dominant Class ---------------- Mutant | -10/Materials Mutant | -10/Mines Derelict-Mutant | -10/Subcaves Commander-Gladiator | -7/Recycling Commander-Gladiator | -7/Scraptown Hacker-Gladiator | -5/Factory Hacker-Gladiator | -5/Extension Commander-Gladiator | -5/Cetus Commander-Gladiator | -5/Archives Commander-Gladiator | -5/Hub_04(d) Hacker-Gladiator | -4/Factory Hacker-Gladiator | -3/Research Hacker-Gladiator | -3/Quarantine Hacker-Gladiator | -2/Research Hacker-Gladiator | -2/Testing Hacker-Gladiator | -1/Access Resources | -11 -10 -10 -10 -7 -7 -5 -5 -5 -5 -5 -4 -3 -3 -2 -2 -1 ----------- Run | Yrd Mat Min Sub Rec Scr Fac Ext Cet Arc Hub Fac Res Qua Res Tes Acc Matter Collected 3546 | 200 99 90 499 248 80 190 117 10 5 48 210 220 420 250 275 585 Remotely . | . . . . . . . . . . . . . . . . . Salvage Created 12533 | . 354 361 640 755 . 1103 617 79 . 223 1060 1081 1176 1314 1146 2624 Parts 860 | . 29 32 64 20 . 86 40 4 . 12 46 83 97 85 65 197 Haulers Intercepted . | . . . . . . . . . . . . . . . . . Recyclers Shooed . | . . . . . . . . . . . . . . . . . Parts Field Recycled . | . . . . . . . . . . . . . . . . . Retrieved Matter . | . . . . . . . . . . . . . . . . . Parts Self-Destructed 15 | . . . 15 . . . . . . . . . . . . . Prevented . | . . . . . . . . . . . . . . . . . Kills | -11 -10 -10 -10 -7 -7 -5 -5 -5 -5 -5 -4 -3 -3 -2 -2 -1 ------- Run | Yrd Mat Min Sub Rec Scr Fac Ext Cet Arc Hub Fac Res Qua Res Tes Acc Combat Hostiles Destroyed 244 | . 14 13 28 4 . 32 16 1 1 3 18 20 24 15 15 40 Melee 185 | . . . . 1 . 32 16 1 1 3 18 20 24 15 15 39 Guns 49 | . 12 12 23 2 . . . . . . . . . . . . AOE 8 | . 2 1 5 . . . . . . . . . . . . . Classes Destroyed 18 | . 3 . 3 . . 2 3 . . 1 . 1 . 2 2 1 Worker 1 | . . . . . . . . . . . . 1 . . . . Builder 1 | . . . . . . . . . . 1 . . . . . . Recycler 3 | . . . . . . . . . . . . . . 1 1 1 Operator 1 | . . . . . . . 1 . . . . . . . . . Turret 2 | . . . 2 . . . . . . . . . . . . . Watcher 22 | . 3 . . . . 4 2 . . 1 1 2 1 2 1 5 Swarmer 49 | . 5 3 11 . . 17 2 . . . 4 3 4 . . . Grunt 38 | . 9 10 . . . 2 8 . . 1 . 3 . . 3 2 Duelist 1 | . . . . . . . . . . . . . . . 1 . Sentry 26 | . . . 1 4 . 1 3 . 1 2 5 2 . 4 . 3 Hunter 27 | . . . . . . 4 1 . . . 4 . 5 2 . 11 Programmer 72 | . . . . . . 8 . . . . 5 12 12 8 10 17 Heavy 1 | . . . . . . . . . . . . . . 1 . . Q-Series 7 | . . . . . . . . . . . . . . . . 7 Behemoth 1 | . . . . . . . 1 . . . . . . . . . Cetus Guard 1 | . . . . . . . . 1 . . . . . . . . Lightning 3 | . . . . . . . . . . . . . 3 . . . Alpha 7 1 | . . . . . . . . . . . . . . . 1 . Subdweller 16 | . . . 16 . . . . . . . . . . . . . Savage 1 | . . . . . . . 1 . . . . . . . . . Best Kill Streak 6 | . 6 5 4 1 . 5 3 1 1 1 4 4 3 3 5 4 Combat Bots Only 5 | . 5 5 4 1 . 5 3 1 1 1 4 4 3 3 4 4 Max Kills in Single Turn 2 | . 1 1 1 1 . 1 1 1 1 1 1 1 1 1 2 2 Gunslinging . | . . . . . . . . . . . . . . . . . Exploded 1 | . 1 1 1 . . . . . . . . . . . . . Melee 2 | . . . . 1 . 1 1 1 1 1 1 1 1 1 2 2 Uniques/NPCs Destroyed . | . . . . . . . . . . . . . . . . . Combat | -11 -10 -10 -10 -7 -7 -5 -5 -5 -5 -5 -4 -3 -3 -2 -2 -1 -------- Run | Yrd Mat Min Sub Rec Scr Fac Ext Cet Arc Hub Fac Res Qua Res Tes Acc Hostile Shots Fired 1951 | . 83 32 206 105 . 166 128 22 1 27 132 102 254 157 144 392 Missed 754 | . 25 6 76 30 . 60 43 12 1 11 57 41 122 71 59 140 Damage Taken 15062 | . 508 279 1681 397 . 1156 1069 113 25 186 661 702 1463 1545 1338 3939 Core 10477 | . 393 208 1087 281 . 772 782 80 19 140 466 506 1064 948 838 2893 Absorbed by Shields 2354 | . . . . 46 . 93 301 43 9 71 251 270 428 . 28 814 Redirected to Core 9063 | . 284 159 880 199 . 654 704 71 19 131 420 460 942 793 705 2642 Redirected to Shielding 69 | . 16 20 33 . . . . . . . . . . . . . Ignored by Resistances 8380 | . 155 83 455 151 . 531 780 107 24 157 501 415 1522 734 531 2234 Regen/Repaired (Parts) 198 | . . . . . . 158 . . . . . . . . . 40 Core Remaining (%) 87 | 100 . . . . 88 . . . . 100 100 . 93 . 70 64 Volleys Fired 196 | . 46 27 108 15 . . . . . . . . . . . . Largest 2 | . 2 2 2 2 . . . . . . . . . . . . Hottest 93 | . 60 60 93 93 . . . . . . . . . . . . Shots Fired 354 | . 92 53 187 22 . . . . . . . . . . . . Gun 346 | . 92 52 180 22 . . . . . . . . . . . . Cannon . | . . . . . . . . . . . . . . . . . Launcher 8 | . . 1 7 . . . . . . . . . . . . . Special . | . . . . . . . . . . . . . . . . . Kinetic 186 | . 46 26 99 15 . . . . . . . . . . . . Thermal 80 | . . . 73 7 . . . . . . . . . . . . Explosive 4 | . . 1 3 . . . . . . . . . . . . . Electromagnetic 84 | . 46 26 12 . . . . . . . . . . . . . Robot Hit Streak 25 | . 17 25 23 21 . . . . . . . . . . . . Robot Miss Streak 3 | . 2 1 3 1 . . . . . . . . . . . . Penetration Max . | . . . . . . . . . . . . . . . . . Secondary Targets 7 | . 2 2 3 . . . . . . . . . . . . . Max Gunslinging Chain 1 | . 1 1 1 . . . . . . . . . . . . . Shots Hit Robots 1156 | . 75 45 138 44 . 75 71 6 3 19 67 92 125 96 84 216 Core Hits 446 | . 34 26 48 12 . 32 24 2 2 6 29 36 47 36 34 78 Critical Kills 2 | . . . . . . . . . . . . . . . . 2 Critical Parts Destroyed 5 | . . . 1 2 . . . . . . . . . . . 2 Critical Strikes 136 | . . 1 3 4 . 11 15 1 . 3 11 10 18 10 12 37 Destroy 2 | . . . 2 . . . . . . . . . . . . . Corrupt 2 | . . 1 1 . . . . . . . . . . . . . Smash 7 | . . . . 2 . . . . . . . . . . . 5 Sever 87 | . . . . 2 . 11 15 1 . 3 11 10 9 7 8 10 Impale 38 | . . . . . . . . . . . . . 9 3 4 22 Melee Attacks 1274 | . . . 5 26 . 135 80 16 3 21 131 124 180 123 97 333 Impact 69 | . . . . 9 . . . . . . . . . . . 60 Slashing 892 | . . . 5 14 . 135 80 16 3 21 131 124 110 96 76 81 Piercing 313 | . . . . 3 . . . . . . . . 70 27 21 192 Sneak Attacks 14 | . . . . 2 . 1 4 . . 2 . 1 . 1 2 1 Combat Hostiles 5 | . . . . 2 . . 3 . . . . . . . . . Follow-up Attacks 356 | . . . . 6 . 15 23 2 . 5 29 33 64 43 38 98 Damage Inflicted 46112 | . 910 664 3247 1834 . 3871 3631 275 128 983 2912 4123 5644 3893 3697 10300 Guns 4442 | . 831 518 2640 453 . . . . . . . . . . . . Cannons . | . . . . . . . . . . . . . . . . . Explosions 832 | . 79 146 607 . . . . . . . . . . . . . Melee 40838 | . . . . 1381 . 3871 3631 275 128 983 2912 4123 5644 3893 3697 10300 Ramming . | . . . . . . . . . . . . . . . . . Kinetic 2658 | . 298 181 1851 328 . . . . . . . . . . . . Thermal 1228 | . 79 . 1024 125 . . . . . . . . . . . . Explosive 399 | . . 146 253 . . . . . . . . . . . . . Electromagnetic 989 | . 533 337 119 . . . . . . . . . . . . . Impact 2739 | . . . . 616 . . . . . . . . . . . 2123 Slashing 28516 | . . . . 699 . 3871 3631 275 128 983 2912 4123 3459 3112 2987 2336 Piercing 9583 | . . . . 66 . . . . . . . . 2185 781 710 5841 Highest Corruption 6 | . . . . . . 4 1 1 1 1 2 3 4 1 1 6 Average Corruption 1 | . . . . . . 1 1 1 1 1 1 1 2 1 1 2 Corruption Purged 44 | . . . . . . 8 . . . . 3 9 9 3 2 10 Corruption Blocked . | . . . . . . . . . . . . . . . . . Effects 35 | . . . . . . 6 8 2 2 7 . 1 3 1 . 5 Message Errors 10 | . . . . . . . 3 1 . 1 . 1 1 1 . 2 Matter Fused 10 | . . . . . . . 4 1 . 4 . . . . . 1 Heat Flow Errors 4 | . . . . . . 2 1 . 1 . . . . . . . Energy Discharges 5 | . . . . . . 1 . . 1 1 . . 1 . . 1 Data Loss (minor) 3 | . . . . . . 1 . . . 1 . . . . . 1 Data Loss (major) 3 | . . . . . . 2 . . . . . . 1 . . . Overload Shots . | . . . . . . . . . . . . . . . . . Overflow Damage 2894 | . . . 45 428 . 252 182 . . 106 112 213 337 154 287 778 Projectiles 37 | . . . . . . . . . . . . . . . . 37 Explosions 45 | . . . 45 . . . . . . . . . . . . . Melee 2812 | . . . . 428 . 252 182 . . 106 112 213 337 154 287 741 Knockbacks 13 | . . . . . . . . . . . . . . . . 13 Impact 12 | . . . . . . . . . . . . . . . . 12 Kinetic . | . . . . . . . . . . . . . . . . . Secondary 1 | . . . . . . . . . . . . . . . . 1 Self-Inflicted Damage 24 | . 24 . . . . . . . . . . . . . . . Shots 1 | . 1 . . . . . . . . . . . . . . . Rammed . | . . . . . . . . . . . . . . . . . Targets Rammed . | . . . . . . . . . . . . . . . . . Kicked . | . . . . . . . . . . . . . . . . . Crushed . | . . . . . . . . . . . . . . . . . Highest Temperature 227 | . 40 24 12 45 . 200 168 8 227 . 2 7 . . 8 3 Average Temperature 35 | . 15 10 9 22 . 40 52 5 111 . 2 2 . . 8 3 Received Heat Transfer 1893 | . 246 177 408 166 . 45 341 24 . 78 18 111 84 36 84 75 Siege Activations . | . . . . . . . . . . . . . . . . . Robots Corrupted 3 | . . . . 2 . . . . . . . . . . . 1 Combat Hostiles 3 | . . . . 2 . . . . . . . . . . . 1 Parts Fried 9 | . 1 . . 2 . . . . . . . . . . . 6 Impact Corruptions 22 | . . . . 7 . . . . . . . . . . . 15 Robots Melted . | . . . . . . . . . . . . . . . . . Combat Hostiles . | . . . . . . . . . . . . . . . . . Parts Melted 6 | . . . 1 . . . . . 4 1 . . . . . . Heat Transferred 1425 | . 50 . 1225 150 . . . . . . . . . . . . Parts Sabotaged . | . . . . . . . . . . . . . . . . . Parts Stolen . | . . . . . . . . . . . . . . . . . Parts Stripped . | . . . . . . . . . . . . . . . . . Power Chain Reactions 2 | . 2 . . . . . . . . . . . . . . . Alert | -11 -10 -10 -10 -7 -7 -5 -5 -5 -5 -5 -4 -3 -3 -2 -2 -1 ------- Run | Yrd Mat Min Sub Rec Scr Fac Ext Cet Arc Hub Fac Res Qua Res Tes Acc Peak Influence 488 | . 236 308 . 70 . 245 432 325 135 429 488 338 232 225 288 308 Initial 210 | . . 43 . . . . 63 210 42 39 116 11 93 . 2 75 Average 124 | . 101 204 . 20 . 82 258 294 126 188 129 95 108 95 147 128 Maximum Alert Level 2 | . 1 1 . . . 1 2 1 . 2 2 1 1 1 1 1 Low Security (%) 78 | 100 95 44 . 100 . 90 36 9 100 45 70 86 96 97 61 82 Level 1 18 | . 4 55 . . . 9 44 90 . 50 20 13 3 2 38 17 Level 2 2 | . . . . . . . 18 . . 4 9 . . . . . Level 3 . | . . . . . . . . . . . . . . . . . Level 4 . | . . . . . . . . . . . . . . . . . Level 5 . | . . . . . . . . . . . . . . . . . High Security . | . . . . . . . . . . . . . . . . . Max Security . | . . . . . . . . . . . . . . . . . Squads Dispatched 56 | . 2 . . . . 5 2 . . 2 13 6 6 4 5 11 Investigation 6 | . 2 . . . . . 2 . . . 2 . . . . . Extermination 35 | . . . . . . 4 . . . 1 5 5 4 3 3 10 Reinforcement 12 | . . . . . . 1 . . . 1 3 1 2 1 2 1 Assault . | . . . . . . . . . . . . . . . . . Garrison 3 | . . . . . . . . . . . 3 . . . . . Intercept . | . . . . . . . . . . . . . . . . . Searches Triggered . | . . . . . . . . . . . . . . . . . Construction Impeded . | . . . . . . . . . . . . . . . . . Haulers Reinforced 2 | . . . . . . . . . . 1 . . . . . 1 Active Scanning Responses . | . . . . . . . . . . . . . . . . . Cargo Convoy Interrupts . | . . . . . . . . . . . . . . . . . Stealth | -11 -10 -10 -10 -7 -7 -5 -5 -5 -5 -5 -4 -3 -3 -2 -2 -1 --------- Run | Yrd Mat Min Sub Rec Scr Fac Ext Cet Arc Hub Fac Res Qua Res Tes Acc Distress Signals 9 | . 1 . . . . 2 . 1 . 3 . 1 . . 1 . Communications Jammed 535 | . . . . . . 20 15 92 1 216 11 8 32 7 34 99 Distress Signals 528 | . . . . . . 20 15 92 1 215 11 8 32 2 33 99 Times Spotted 371 | . 21 14 34 3 . 50 30 5 4 13 25 25 36 23 29 59 Peak Tracking Total 8 | . 6 4 4 2 . 6 5 5 2 5 3 5 4 5 7 8 Tactical Retreats 20 | . 1 1 4 . . 7 1 . . . . . 1 1 2 2 Traps | -11 -10 -10 -10 -7 -7 -5 -5 -5 -5 -5 -4 -3 -3 -2 -2 -1 ------- Run | Yrd Mat Min Sub Rec Scr Fac Ext Cet Arc Hub Fac Res Qua Res Tes Acc Traps Triggered 16 | . 2 . 4 . . . 3 . . . 1 1 3 . 2 . Indirectly . | . . . . . . . . . . . . . . . . . Trap Hack Attempts . | . . . . . . . . . . . . . . . . . Triggered . | . . . . . . . . . . . . . . . . . Disarmed . | . . . . . . . . . . . . . . . . . Reprogrammed . | . . . . . . . . . . . . . . . . . Reused . | . . . . . . . . . . . . . . . . . Traps Extracted . | . . . . . . . . . . . . . . . . . Installed . | . . . . . . . . . . . . . . . . . Triggered . | . . . . . . . . . . . . . . . . . Machines | -11 -10 -10 -10 -7 -7 -5 -5 -5 -5 -5 -4 -3 -3 -2 -2 -1 ---------- Run | Yrd Mat Min Sub Rec Scr Fac Ext Cet Arc Hub Fac Res Qua Res Tes Acc Machines Disabled 15 | . 1 . 1 1 . 1 . 1 2 1 4 . 1 . 2 . Max in Single Turn 1 | . 1 . 1 1 . 1 . 1 . . . . 1 . 1 . Garrison Access 6 | . . . . . . 1 . . . . 2 . 1 1 . 1 Machines Repaired . | . . . . . . . . . . . . . . . . . Machines Dismantled . | . . . . . . . . . . . . . . . . . Machines Sabotaged . | . . . . . . . . . . . . . . . . . Overloaded Fab Kills . | . . . . . . . . . . . . . . . . . Hacking | -11 -10 -10 -10 -7 -7 -5 -5 -5 -5 -5 -4 -3 -3 -2 -2 -1 --------- Run | Yrd Mat Min Sub Rec Scr Fac Ext Cet Arc Hub Fac Res Qua Res Tes Acc Machines Accessed 126 | . 6 . 3 11 5 14 14 1 . 6 18 3 17 5 5 18 Terminals 78 | . 5 . . 5 . 9 14 1 . 5 8 2 12 3 3 11 Fabricators 4 | . . . . . . . . . . . 2 . . . 1 1 Repair Stations 7 | . . . . . . 2 . . . . 1 . 2 . . 2 Recycling Units 16 | . 1 . . 6 . 2 . . . . 4 1 . 1 . 1 Scanalyzers 5 | . . . . . . . . . . . 1 . 2 . . 2 Garrison Access 8 | . . . . . . 1 . . . 1 2 . 1 1 1 1 Total Hacks 396 | . 17 . 7 31 13 41 36 1 . 28 59 8 65 15 20 55 Successful 256 | . 11 . 7 21 13 28 22 1 . 20 39 5 42 6 8 33 Failed 140 | . 6 . . 10 . 13 14 . . 8 20 3 23 9 12 22 Catastrophic 17 | . 1 . . 2 . 2 1 . . 3 4 1 2 1 . . Database Lockouts . | . . . . . . . . . . . . . . . . . Manual 177 | . 9 . . 11 . 25 17 1 1 19 29 6 28 5 6 20 Terminals 276 | . 15 . . 15 . 29 36 1 . 26 38 5 53 11 15 32 Fabricators 7 | . . . . . . . . . . . 4 . . . 2 1 Repair Stations 18 | . . . . . . 7 . . . . 1 . 6 . . 4 Recycling Units 42 | . 2 . . 16 . 4 . . . . 11 3 . 2 . 4 Scanalyzers 20 | . . . . . . . . . . . 3 . 5 . . 12 Garrison Access 13 | . . . . . . 1 . . . 2 2 . 1 2 3 2 Terminal Hacks 128 | . 5 . 7 8 13 11 17 1 . 11 16 . 24 2 3 10 Record 18 | . . . 5 . 12 . . . . . . . 1 . . . Part Schematic 4 | . . . . . . . 1 . . 2 . . 1 . . . Robot Analysis 7 | . . . . 1 . 1 3 . . . 1 . 1 . . . Prototype ID Bank 8 | . 1 . . 1 . 1 . . . . 2 . 2 1 . . Open Door 15 | . . . 1 . . . 9 1 . . . . 2 . . 2 Level Access Points 5 | . . . . . . . . . . 1 . . 2 . 1 1 Branch Access Points 6 | . . . . 1 . 1 . . . . 2 . 1 . . 1 Emergency Access Points 3 | . . . . . . 1 . . . 2 . . . . . . Machine Index 2 | . . . . . . . . . . . . . 1 . . 1 Terminal Index 6 | . . . . . . 1 1 . . . 1 . 3 . . . Recycling Unit Index 1 | . . . . 1 . . . . . . . . . . . . Garrison Index 1 | . . . . . . . . . . . . . 1 . . . Alert Level 25 | . 1 . . 2 . 3 2 . . 2 5 . 4 1 2 3 Unreport Threat 5 | . 1 . . . . 1 1 . . . 1 . 1 . . . Locate Traps 5 | . 1 . . . . 1 . . . 2 1 . . . . . Dispatch Records 1 | . . . . . . . . . . . . . 1 . . . Recall Extermination 1 | . . . . . . . . . . . 1 . . . . . Recall Reinforcements 2 | . . . . . . . . . . . 1 . 1 . . . Registered Components 4 | . . . . 1 . 1 . . . 1 . . . . . 1 Registered Prototypes 3 | . 1 . . . . . . . . . 1 . 1 . . . Zone Layout 4 | . . . . 1 . . . . . 1 . . 1 . . 1 Derelict Proto ID Bank 1 | . . . . . 1 . . . . . . . . . . . Release Object 1 | . . . 1 . . . . . . . . . . . . . Fabricator Hacks 5 | . . . . . . . . . . . 3 . . . 1 1 Network Status 3 | . . . . . . . . . . . 1 . . . 1 1 Load Schematic 1 | . . . . . . . . . . . 1 . . . . . Build 1 | . . . . . . . . . . . 1 . . . . . Repair Station Hacks 10 | . . . . . . 4 . . . . . . 3 . . 3 Scan Component 7 | . . . . . . 3 . . . . . . 2 . . 2 Repair 3 | . . . . . . 1 . . . . . . 1 . . 1 Recycling Unit Hacks 14 | . 1 . . 5 . 1 . . . . 4 1 . 1 . 1 Retrieve Components 14 | . 1 . . 5 . 1 . . . . 4 1 . 1 . 1 Scanalyzer 17 | . . . . . . . . . . . 2 . 5 . . 10 Insert Component 10 | . . . . . . . . . . . 1 . 3 . . 6 Analyze 7 | . . . . . . . . . . . 1 . 2 . . 4 Garrison Access Hacks 6 | . . . . . . 1 . . . . 2 . 1 1 . 1 Seal Access 6 | . . . . . . 1 . . . . 2 . 1 1 . 1 Unauthorized Hacks 76 | . 5 . . 8 . 11 5 . . 9 12 4 9 2 4 7 Terminals 58 | . 4 . . 3 . 8 5 . . 9 7 2 9 2 4 5 Track 23 | . 1 . . . . 4 1 . . 5 3 . 5 . 2 2 Assimilate 1 | . . . . . . . . . . . 1 . . . . . Botnet 30 | . 3 . . 3 . 3 3 . . 3 3 2 3 2 2 3 Operators 4 | . . . . . . 1 1 . . 1 . . 1 . . . Fabricators . | . . . . . . . . . . . . . . . . . Repair Stations 2 | . . . . . . 1 . . . . 1 . . . . . Mechanics 2 | . . . . . . 1 . . . . 1 . . . . . Recycling Units 16 | . 1 . . 5 . 2 . . . . 4 2 . . . 2 Reject 10 | . . . . 4 . 1 . . . . 3 1 . . . 1 Recyclers 5 | . . . . 1 . 1 . . . . 1 1 . . . 1 Tunnel 1 | . 1 . . . . . . . . . . . . . . . Scanalyzers . | . . . . . . . . . . . . . . . . . Garrison Access . | . . . . . . . . . . . . . . . . . Data Cores Recovered 1 | . . . . . . . 1 . . . . . . . . . Used 1 | . . . . . . . 1 . . . . . . . . . Hacking Detections 98 | . 6 . . 11 . 13 8 . . 6 12 3 13 5 5 16 Full Trace Events 5 | . . . . 1 . . 2 . . . 2 . . . . . Feedback Events . | . . . . . . . . . . . . . . . . . Feedback Blocked . | . . . . . . . . . . . . . . . . . Robot Schematics Acquired . | . . . . . . . . . . . . . . . . . Robots Built . | . . . . . . . . . . . . . . . . . Authchips . | . . . . . . . . . . . . . . . . . Time . | . . . . . . . . . . . . . . . . . Total Robot Build Rating . | . . . . . . . . . . . . . . . . . Part Schematics Acquired 10 | . . . . . . . 1 . . 2 . . 3 . . 4 Parts Built 2 | . . . . . . . . . . . 2 . . . . . Authchips . | . . . . . . . . . . . . . . . . . Time 53 | . . . . . . . . . . . 53 . . . . . Total Part Build Rating 12 | . . . . . . . . . . . 12 . . . . . Parts Repaired 3 | . . . . . . 1 . . . . . . 1 . . 1 Time 102 | . . . . . . 22 . . . . . . 43 . . 37 Parts Recycled . | . . . . . . . . . . . . . . . . . Recycled Matter . | . . . . . . . . . . . . . . . . . Retrieved Matter . | . . . . . . . . . . . . . . . . . Retrieved Components 68 | . 10 . . 15 . 10 . . . . 12 1 . 10 . 10 Parts Scanalyzed 5 | . . . . . . . . . . . 1 . 2 . . 2 Part Schematics Acquired 6 | . . . . . . . . . . . . . 2 . . 4 Parts Damaged 2 | . . . . . . . . . . . . . 2 . . . Bothacking | -11 -10 -10 -10 -7 -7 -5 -5 -5 -5 -5 -4 -3 -3 -2 -2 -1 ------------ Run | Yrd Mat Min Sub Rec Scr Fac Ext Cet Arc Hub Fac Res Qua Res Tes Acc Used RIF Installer . | . . . . . . . . . . . . . . . . . Robots Hacked . | . . . . . . . . . . . . . . . . . Non-combat . | . . . . . . . . . . . . . . . . . Combat . | . . . . . . . . . . . . . . . . . Robot Hacks Applied . | . . . . . . . . . . . . . . . . . Relay Couplers Released 1 | . . . . . . . . . . . . . . . 1 . Programmers 1 | . . . . . . . . . . . . . . . 1 . Fabnet Peak Effective % . | . . . . . . . . . . . . . . . . . Robots Rewired 24 | . . . . 8 . . 16 . . . . . . . . . Allies Hacked 2 | . . . . . . 1 . . . . . 1 . . . . Hacks Repelled . | . . . . . . . . . . . . . . . . . Allies | -11 -10 -10 -10 -7 -7 -5 -5 -5 -5 -5 -4 -3 -3 -2 -2 -1 -------- Run | Yrd Mat Min Sub Rec Scr Fac Ext Cet Arc Hub Fac Res Qua Res Tes Acc Total Allies 61 | . . . . 8 . . 27 5 . . 1 . . . . 20 Largest Group 25 | . . . . 8 8 8 22 25 25 21 17 1 . . . 12 Highest-Rated Group 1206 | . . . . 159 159 159 771 1206 1203 958 796 26 . . . 169 Highest-Rated Ally 159 | . . . . 40 40 40 159 159 159 96 96 26 . . . 15 Total Orders . | . . . . . . . . . . . . . . . . . Ally Attacks 492 | . . . . . . . 87 41 37 61 110 . . . . 156 Total Damage 10450 | . . . . . . . 1916 610 897 1693 2339 . . . . 2995 Kills 56 | . . . . . . . 13 5 3 12 17 . . . . 6 Allies Corrupted 2 | . . . . . . . . . . . 1 . . . . 1 Allies Melted . | . . . . . . . . . . . . . . . . . Intel | -11 -10 -10 -10 -7 -7 -5 -5 -5 -5 -5 -4 -3 -3 -2 -2 -1 ------- Run | Yrd Mat Min Sub Rec Scr Fac Ext Cet Arc Hub Fac Res Qua Res Tes Acc Robot Analysis Total 7 | . . . . 1 . 1 3 . . . 1 . 1 . . . Derelict Logs Recovered 4 | . . 3 1 . . . . . . . . . . . . . Drone Launches . | . . . . . . . . . . . . . . . . . Drone Recoveries . | . . . . . . . . . . . . . . . . . Exploration | -11 -10 -10 -10 -7 -7 -5 -5 -5 -5 -5 -4 -3 -3 -2 -2 -1 ------------- Run | Yrd Mat Min Sub Rec Scr Fac Ext Cet Arc Hub Fac Res Qua Res Tes Acc Turns Passed 24241 | 10 579 682 3409 1282 1739 2556 1145 443 142 524 2988 1376 2049 1253 994 3070 Spaces Moved 14723 | 6 314 446 1639 752 1487 1653 658 255 93 361 1893 779 1157 815 609 1806 Core . | . . . . . . . . . . . . . . . . . Treads . | . . . . . . . . . . . . . . . . . Legs 11493 | 6 314 446 1082 197 . 1022 658 255 93 361 1893 779 1157 815 609 1806 Wheels 3230 | . . . 557 555 1487 631 . . . . . . . . . . Hover . | . . . . . . . . . . . . . . . . . Flight . | . . . . . . . . . . . . . . . . . Fastest Speed 100 | 120 120 120 110 100 115 115 120 120 120 120 120 120 116 110 115 118 Average Speed 125 | 120 120 120 178 137 115 118 120 120 120 120 120 120 117 113 116 118 Slowest Speed 260 | 120 120 120 210 210 115 190 120 120 120 120 120 120 260 116 183 120 Overloaded Moves . | . . . . . . . . . . . . . . . . . Propulsion Burnouts . | . . . . . . . . . . . . . . . . . Robots Hopped 2 | . . . . . . . . . . . . . . . . 2 Cave-ins Triggered 1 | . . . . . . . . . . . . . 1 . . . Exploration Rate (%) 59 | 2 57 93 92 98 91 39 75 74 72 36 49 15 86 22 55 48 Regions Visited 16 Branch Regions 10 Pre-discovered Areas 6 | . 1 1 2 . 2 . . . . . . . . . . . Known Exits Taken 15 | . 1 1 1 1 1 1 1 1 1 1 1 1 1 1 1 . Unknown Exits Taken 1 | 1 . . . . . . . . . . . . . . . . Scrap Searched 10 | . . 1 5 . 4 . . . . . . . . . . . Spaces Dug 144 | . . . . . . 29 . 2 . 1 33 10 20 10 1 38 Terrain Destroyed 231 | . 7 11 69 . . 29 . 2 . 1 33 10 20 10 1 38 Melee 144 | . . . . . . 29 . 2 . 1 33 10 20 10 1 38 Projectile 2 | . . . 2 . . . . . . . . . . . . . AOE 85 | . 7 11 67 . . . . . . . . . . . . . Terrain Rammed . | . . . . . . . . . . . . . . . . . Walls Destroyed . | . . . . . . . . . . . . . . . . . Machines Disabled . | . . . . . . . . . . . . . . . . . Actions | -11 -10 -10 -10 -7 -7 -5 -5 -5 -5 -5 -4 -3 -3 -2 -2 -1 --------- Run | Yrd Mat Min Sub Rec Scr Fac Ext Cet Arc Hub Fac Res Qua Res Tes Acc Total 18991 | 8 431 543 1922 948 1518 2116 950 383 123 435 2498 1123 1683 1033 807 2470 Wait 2075 | . 49 44 65 91 9 280 74 106 21 45 421 211 289 78 70 222 Move 14702 | 5 313 445 1638 751 1486 1652 657 254 92 360 1892 778 1156 814 608 1801 Hop 2 | . . . . . . . . . . . . . . . . 2 Pick Up 101 | 1 . 1 2 4 3 9 5 2 3 . 17 1 12 2 1 38 Fast Attach 123 | 2 4 1 14 12 6 10 7 1 . 2 6 2 23 12 16 5 Attach 18 | . . . . 1 1 1 2 . . . 1 . 2 . 1 9 Detach 12 | . . . 1 1 1 1 1 . . 1 . . 1 1 . 4 Swap 137 | . . 2 6 . 3 5 . . . . 22 12 17 13 11 46 Drop 208 | . . 2 20 10 9 14 9 3 2 1 34 5 26 14 17 42 Fire 196 | . 46 27 108 15 . . . . . . . . . . . . Melee 694 | . . . 5 18 . 94 48 10 3 15 71 69 85 63 50 163 Ram . | . . . . . . . . . . . . . . . . . Kick . | . . . . . . . . . . . . . . . . . Crush . | . . . . . . . . . . . . . . . . . Escape Stasis 13 | . . . . . . . 8 . . . . . 3 . 2 . Rewire 80 | . . . . 24 . . 56 . . . . . . . . . Trap . | . . . . . . . . . . . . . . . . . Miscellaneous 630 | . 19 21 63 21 . 50 83 7 2 11 34 45 69 36 31 138 Route ------- -11/Scrapyard -10/Materials (discovered 2 exits: *Mat / *Min) -10/Mines (discovered 4 exits: *Mat x2 / [*Exi] / *Sub) -10/Subcaves (discovered 3 exits: *Mat x2 / *Rec) -7/Recycling (discovered 2 exits: *Fac / *Scr) -7/Scraptown (discovered 2 exits: *Fac x2) -5/Factory (discovered 5 exits: *Fac / Upp x2 / *Ext x2) -5/Extension (discovered 3 exits: *Fac x2 / *Cet) -5/Cetus -5/Archives (discovered 2 exits: Fac / *Hub) -5/Hub_04(d) (discovered 4 exits: *Fac x4) -4/Factory (discovered 5 exits: *Res x3 / *Upp x2) -3/Research -3/Quarantine -2/Research (discovered 2 exits: *Acc / *Tes) -2/Testing -1/Access (discovered 2 exits: *Sur / Com) To Fleet Rendezvous History --------- Turn | Location | Event 1 | -11/Scrapyard | Discovered new exit (range 1) 3 | -11/Scrapyard | Upgraded with Propulsion slot (x1) 3 | -11/Scrapyard | Upgraded with Utility slot (x3) 3 | -11/Scrapyard | Upgraded with Weapon slot (x1) 11 | -11/Scrapyard | Entered Materials 128 | -10/Materials | Discovered new exit (range 16) 306 | -10/Materials | Build established: Mutant 359 | -10/Materials | Discovered new exit (range 14) 422 | -10/Materials | Reached level 2 589 | -10/Materials | Identified exit to Mines 590 | -10/Materials | Entered Mines 694 | -10/Mines | Discovered new exit (range 8) 701 | -10/Mines | Identified exit to Materials 732 | -10/Mines | Discovered exit to Materials (range 8) 741 | -10/Mines | Reached level 3 919 | -10/Mines | Learned Materials terminal intel 1041 | -10/Mines | Received a Rocket Launcher from a helpful Derelict 1043 | -10/Mines | Upgraded with Utility slot (x1) 1043 | -10/Mines | Upgraded with Weapon slot (x1) 1051 | -10/Mines | Deemed a non-threat by the Exiles lab entrance 1051 | -10/Mines | Discovered new exit (range 5) 1110 | -10/Mines | Learned Materials terminal intel 1190 | -10/Mines | Discovered new exit (range 10) 1199 | -10/Mines | Identified exit to Subcaves 1272 | -10/Mines | Entered Subcaves 1274 | -10/Subcaves | Reached level 4 1288 | -10/Subcaves | Upgraded with Utility slot (x1) 1462 | -10/Subcaves | Visited Clippyterm 1466 | -10/Subcaves | Learned location of Deep Caves (-7) 1466 | -10/Subcaves | Learned Research machine intel 1602 | -10/Subcaves | A swath of the cavern ceiling suddenly collapsed 1614 | -10/Subcaves | Discovered new exit (range 16) 1730 | -10/Subcaves | Build established: Subdweller-Tank 1817 | -10/Subcaves | Identified exit to Materials 2098 | -10/Subcaves | Shifting Twisted Machinery released Mak. Leg 2116 | -10/Subcaves | Shifting Twisted Machinery released Sub. Power Source 2258 | -10/Subcaves | Build established: Subdweller-Mutant 2461 | -10/Subcaves | Discovered new exit (range 9) 2521 | -10/Subcaves | Identified exit to Recycling 2757 | -10/Subcaves | Reached level 5 3058 | -10/Subcaves | Discovered exit to Materials (range 9) 3074 | -10/Subcaves | Learned location of Zion (-7) 3074 | -10/Subcaves | Met a Zionite searching for "candidates" 3134 | -10/Subcaves | A swath of the cavern ceiling suddenly collapsed 3197 | -10/Subcaves | Ambushed by Subdweller buried in earth 3223 | -10/Subcaves | Core integrity fell below 50% 3315 | -10/Subcaves | Shifting Twisted Machinery released Sub. Beam Cannon 3322 | -10/Subcaves | Shifting Twisted Machinery released Sub. Machine Gun 3493 | -10/Subcaves | Build established: Derelict-Mutant 4378 | -10/Subcaves | Shifting Twisted Machinery released Sub. Shrapnel Launcher 4401 | -10/Subcaves | Shifting Twisted Machinery released Sub. Monowheel 4409 | -10/Subcaves | Learned 8 Materials zone layouts 4681 | -10/Subcaves | Entered Recycling 4683 | -7/Recycling | Reached level 6 4683 | -7/Recycling | Reached level 7 4717 | -7/Recycling | Scanned before Scraplab entrance 4813 | -7/Recycling | Reached level 8 4977 | -7/Recycling | Build established: Scavenger-Mutant 5389 | -7/Recycling | Upgraded with Utility slot (x2) 5574 | -7/Recycling | Discovered new exit (range 6) 5628 | -7/Recycling | Build established: Commander-Gladiator 5935 | -7/Recycling | Entered Scraplab 5945 | -7/Recycling | Discovered new exit (range 3) 5946 | -7/Recycling | Identified exit to Scraptown 5963 | -7/Recycling | Entered Scraptown 5963 | -7/Scraptown | Accompanied by 8 allies 6245 | -7/Scraptown | Discovered new exit (range 11) 6318 | -7/Scraptown | Visited Assassins FH 6352 | -7/Scraptown | Visited Supply Room 6363 | -7/Scraptown | Visited Red Mages 6454 | -7/Scraptown | Visited Comm Corps 6510 | -7/Scraptown | Visited IN-MT5's Study 6655 | -7/Scraptown | Visited UFD Registry 6663 | -7/Scraptown | Visited SPCMW 6691 | -7/Scraptown | Registered with UFD as "Wrenchbank" 6691 | -7/Scraptown | Reached level 9 6706 | -7/Scraptown | Visited Cyclists 6718 | -7/Scraptown | Entered Cyclist Reading Room 6803 | -7/Scraptown | Visited Chapter 10 6835 | -7/Scraptown | Visited Scrapoid Research Area 6872 | -7/Scraptown | Visited Supply Room 6885 | -7/Scraptown | Visited Abandonware Association 6980 | -7/Scraptown | Visited Botcube Research 7132 | -7/Scraptown | Visited Science Guys 7170 | -7/Scraptown | Visited Junk Repository 7195 | -7/Scraptown | Visited Observation Area 7275 | -7/Scraptown | Visited Infowarlord's Domain 7328 | -7/Scraptown | Upgraded with Power slot (x1) 7328 | -7/Scraptown | Upgraded with Weapon slot (x1) 7611 | -7/Scraptown | Discovered new exit (range 5) 7616 | -7/Scraptown | Identified exit to Factory 7702 | -7/Scraptown | Entered Factory 7702 | -5/Factory | Accompanied by 8 allies 7704 | -5/Factory | Reached level 10 7704 | -5/Factory | Reached level 11 7704 | -5/Factory | Reached level 12 7704 | -5/Factory | Reached level 13 7704 | -5/Factory | Reached level 14 7704 | -5/Factory | Reached level 15 7812 | -5/Factory | Upgraded with Propulsion slot (x1) 7812 | -5/Factory | Upgraded with Utility slot (x2) 8008 | -5/Factory | Lost 3 allies 8202 | -5/Factory | Repaired Arm. Huge Wheel 8242 | -5/Factory | Build established: Hacker-Gladiator 8290 | -5/Factory | Lost 3 allies 8426 | -5/Factory | Reached level 16 8558 | -5/Factory | Upgraded with Propulsion slot (x1) 9034 | -5/Factory | Identified exit to Upper Caves 9034 | -5/Factory | Identified exit to Extension 9108 | -5/Factory | Reached level 17 9653 | -5/Factory | Discovered new exit (range 19) 9684 | -5/Factory | Identified exit to Factory 10119 | -5/Factory | Reached level 18 10123 | -5/Factory | Upgraded with Weapon slot (x1) 10258 | -5/Factory | Entered Extension 10260 | -5/Extension | Reached level 19 10345 | -5/Extension | Rescued a captive Derelict 10346 | -5/Extension | Rescued a captive Derelict 10362 | -5/Extension | Rescued a captive Derelict 10467 | -5/Extension | Rescued A7 10572 | -5/Extension | Reached level 20 10573 | -5/Extension | Upgraded with Power slot (x1) 10800 | -5/Extension | Rescued a captive Derelict 10814 | -5/Extension | Spotted B-75 Beast 10821 | -5/Extension | Spotted B-75 Beast 10840 | -5/Extension | Destroyed B-75 Beast 10858 | -5/Extension | Discovered exit to Factory (range 9) 11072 | -5/Extension | Rescued a captive Derelict 11155 | -5/Extension | Rescued a captive Derelict 11165 | -5/Extension | Rescued a captive Derelict 11171 | -5/Extension | Reached level 21 11176 | -5/Extension | Upgraded with Propulsion slot (x1) 11239 | -5/Extension | Rescued a captive Derelict 11247 | -5/Extension | Rescued a captive Derelict 11253 | -5/Extension | Rescued a captive Derelict 11328 | -5/Extension | Discovered exit to Factory (range 10) 11329 | -5/Extension | Discovered new exit (range 6) 11330 | -5/Extension | Build established: Commander-Gladiator 11335 | -5/Extension | Identified exit to Cetus 11403 | -5/Extension | Entered Cetus 11403 | -5/Cetus | Accompanied by 22 allies (A7) 11408 | -5/Cetus | Acquired a Cetus Manufacturing Module code from A7 11420 | -5/Cetus | Spotted Cetus Guard 11420 | -5/Cetus | Spotted Cetus Guard 11421 | -5/Cetus | Spotted Cetus Guard 11422 | -5/Cetus | Spotted Cetus Guard 11429 | -5/Cetus | Allies destroyed Cetus Guard 11438 | -5/Cetus | Allies destroyed Cetus Guard 11439 | -5/Cetus | Allies destroyed Cetus Guard 11441 | -5/Cetus | Destroyed Cetus Guard 11533 | -5/Cetus | Escorted A7 to Cetus Mainframe 11557 | -5/Cetus | Discovered new exit (range 17) 11574 | -5/Cetus | Identified exit to Archives 11637 | -5/Cetus | Started Cetus Manufacturing Module 11662 | -5/Cetus | Manufactured an Enhanced Grunt 11687 | -5/Cetus | Manufactured an Enhanced Grunt 11712 | -5/Cetus | Manufactured an Enhanced Grunt 11737 | -5/Cetus | Manufactured an Enhanced Grunt 11762 | -5/Cetus | Manufactured an Enhanced Grunt 11846 | -5/Cetus | Entered Archives 11846 | -5/Archives | Accompanied by 25 allies (A7) 11851 | -5/Archives | Received a hacking code to weaken MAIN.C 11869 | -5/Archives | Discovered new exit (range 17) 11869 | -5/Archives | Reached level 22 11905 | -5/Archives | Lost 3 allies 11914 | -5/Archives | Unable to access archive contents 11930 | -5/Archives | Discovered exit to Factory (range 17) 11971 | -5/Archives | Identified exit to Hub_04(d) 11988 | -5/Archives | Entered Hub_04(d) 11988 | -5/Hub_04(d) | Accompanied by 21 allies 12512 | -5/Hub_04(d) | Entered Factory 12512 | -4/Factory | Accompanied by 17 allies 12514 | -4/Factory | Reached level 23 12600 | -4/Factory | Reached level 24 12728 | -4/Factory | Lost 9 allies 12873 | -4/Factory | Garrison activated, responded to threat 12970 | -4/Factory | Lost 3 allies 12997 | -4/Factory | Build established: Hacker-Gladiator 13266 | -4/Factory | Reached level 25 13313 | -4/Factory | Discovered new exit (range 9) 13322 | -4/Factory | Identified exit to Research 13424 | -4/Factory | Found Imp. Powered Armor 13527 | -4/Factory | Identified exit to Upper Caves 14114 | -4/Factory | Fabricated Imp. Transmission Jammer? 14248 | -4/Factory | Discovered exit to Research (range 16) 14969 | -4/Factory | Discovered exit to Research (range 18) 15500 | -4/Factory | Entered Research 15500 | -3/Research | Accompanied by 1 ally 15501 | -3/Research | Loaded intel: 109 machine locations 15502 | -3/Research | Reached level 26 15810 | -3/Research | Found Prototype Device 15810 | -3/Research | Identified Exp. Thermal Shield 16191 | -3/Research | Reached level 27 16230 | -3/Research | Discovered new exit (range 13) 16396 | -3/Research | Identified exit to Quarantine 16876 | -3/Research | Entered Quarantine 16878 | -3/Quarantine | Reached level 28 17140 | -3/Quarantine | Crushed by falling debris 17240 | -3/Quarantine | Met incapacitated Sigix Warrior 17240 | -3/Quarantine | Lockdown squad dispatched 17244 | -3/Quarantine | Acquired the access code to the Sigix quarantine chamber 17246 | -3/Quarantine | Unlocked Sigix quarantine chamber 17253 | -3/Quarantine | Found Sigix Containment Pod 17258 | -3/Quarantine | Upgraded with Utility slot (x1) 17297 | -3/Quarantine | Spotted Lightning 17297 | -3/Quarantine | Spotted Lightning 17297 | -3/Quarantine | Spotted Lightning 17325 | -3/Quarantine | Destroyed Lightning 17338 | -3/Quarantine | Destroyed Lightning 17346 | -3/Quarantine | Destroyed Lightning 17362 | -3/Quarantine | Found Prototype Device 17362 | -3/Quarantine | Identified Exp. Phase Shifter 17366 | -3/Quarantine | Found Prototype Processor 17366 | -3/Quarantine | Identified Exp. Targeting Computer 17369 | -3/Quarantine | Found Prototype Device 17369 | -3/Quarantine | Identified Exp. EM Disruption Field 17709 | -3/Quarantine | Identified exit to Research 18304 | -3/Quarantine | Repaired Broken Nanoactuators 18374 | -3/Quarantine | Spotted Alpha 7 18452 | -3/Quarantine | Found Prototype Launcher 18489 | -3/Quarantine | Identified Tactical Quantum Warhead 18553 | -3/Quarantine | Reached level 29 18683 | -3/Quarantine | Found Alien Artifact 18683 | -3/Quarantine | Identified Core Reset Matrix 18683 | -3/Quarantine | Used Core Reset Matrix 18687 | -3/Quarantine | Sensed 1 artifact in vicinity 18847 | -3/Quarantine | Discovered exit to Research (range 9) 18925 | -3/Quarantine | Entered Research 18927 | -2/Research | Reached level 30 18943 | -2/Research | Spotted B-90 Cyclops 19565 | -2/Research | Core integrity fell below 50% 19844 | -2/Research | Discovered new exit (range 12) 19899 | -2/Research | Identified exit to Access 19961 | -2/Research | Discovered new exit (range 5) 19980 | -2/Research | Identified exit to Testing 20178 | -2/Research | Entered Testing 20180 | -2/Testing | Reached level 31 20411 | -2/Testing | Spotted Alpha 7 20418 | -2/Testing | Destroyed Alpha 7 20641 | -2/Testing | Found Prototype Device 20641 | -2/Testing | Identified 2N-1CE's Frost Array 21152 | -2/Testing | Scanned by Researcher 21172 | -2/Testing | Entered Access 21174 | -1/Access | Reached level 32 21174 | -1/Access | Reached level 33 21336 | -1/Access | Core integrity fell below 50% 21413 | -1/Access | Upgraded with Utility slot (x1) 22412 | -1/Access | Found Prototype Device 22589 | -1/Access | Identified Exp. Thermal Shield 22730 | -1/Access | Reached level 34 23365 | -1/Access | Discovered new exit (range 15) 23379 | -1/Access | Identified exit to Command 23636 | -1/Access | Found Corrupted Prototype Device 23640 | -1/Access | Identified Exp. Actuator Array 23695 | -1/Access | Repaired Adv. Phase Shifter 23701 | -1/Access | Found Prototype Processor 23705 | -1/Access | Identified Exp. Melee Analysis Suite 23725 | -1/Access | Found Exp. Actuator Array 23734 | -1/Access | Found Exp. Thermal Shield 23933 | -1/Access | Emitted hypermatrix ping 23936 | -1/Access | Assembled emerged from beneath the floor 23938 | -1/Access | Assembled emerged from beneath the floor 23940 | -1/Access | Spotted B-99 Colossus 23993 | -1/Access | Identified exit to Surface 24001 | -1/Access | Lost 6 allies 24025 | -1/Access | Core integrity fell below 20% 24136 | -1/Access | Assembled emerged from beneath the floor 24242 | *** | Heading to fleet! Last Messages --------------- 24225_ Slug penetrates P-80 Master. 24225_ as-33275 destroyed. 24227_ K-01 Serf collects debris. 24227_ as-23764 destroyed. 24228_ as-34224 system terminally corrupted. 24228_ as-42238 destroyed. 24230_ K-01 Serf collects debris. 24231_ as-09175 destroyed. 24232_ U-05 Engineer destroyed. 24233_ Protomatter-3 decays. 24233_ ALERT: Infestation gathering in Complex 0b10, dispatching Demolisher response squad. 24233_ Detected hypermatrix ping. 24233_ Connecting with Terminal... >>Open(Door) Sealed Barrier opened. 24233_ K-01 Serf collects debris. 24236_ The Access Shell folds into the floor. 24240_ K-01 Serf collects debris. 24240_ P-80 Master resets K-01 Serf, system corruption cleaned. Map ----- +----------------------------------------------------+ | ? #??# "?""" ##??###??##?###? ?????????????? | | ?? ??# """"" #???####?#???### ? ??? ??????? | | ?? ?## """" ####??#####?####??? ? ???????? | | ????+ " #?#?##??#?#?#### ??? ?????????? | | ???### ###?#??#?####?#? ???? ? ???????? | | ?? ??? ! #?#####?#??#?### ??? ? ?? ?????? | | ?#???# ? ##?##?##??##?#?? ? ?? ? ??????? | | ??###? #####?#?######????????? ?? ???? | | ###?# ?##??#????####?## ? ???? ?????? | | ????? ? ???##?#?#######?# ? ?? ?#??? | | ?#??#?####?##+#+####################+#######?#???? | | #?######### =%! % !!% ##???????? | | !|= %A %% ##??#????? | | ############ ###### %k ""####### ?###?????? | | ?? #?###### ###### % ""##??##????#?#?????? | | ? ??#?##?## #??### ""#?#?##?? ?#??##???? | | ?? ##?##### #??### T#?##?#?? ?????????? | | ? ######## ###### ""#??####??#?????? ?? | | ?? + %[ #?#### ""#??????????#??????? | | ?? # % ##?### ""#####?? ???#??#???? | | ?"? ## ##?## #?##?#???##??????? | | ""??## #?#### ###?##???##???????? | | " ?## ###### #???#?? ?????????? | | ? ######## ###### ##?#??? #??#?????? | | #?###### #?#### #?##?#???#?##?????? | | ? ##?##### ###### @" ##?#??#??#???#????? | | ##+######### ###### "" ##??#?#?w?#???????? | | ###### #??###?? ?????????? | | ####?# ##????? ????? ? ?? | | ###### ###?##?? ????? ???? | | """""" ######""""""""""#####?#????????? ? | | """""" ######""?"""?"????##?#???????? ??+? | | """""" ######"""?""?"?"##????? ?#?? ?? #? | | """""" ##?###"?"?"""?""????#?????? ## | | """""" #####? ? ? ###??#? ? ?? ??#? | | ###### ?? ?????????? ?# ? ? ## | | ###?## ? ? ? ?????#? # ## | | ###?##? ? ? ????#??? ?# ?## | | #/##############?#### ???? ##??#??? ########## | | ##?###?####?#?###? ? ?????#? # ?? | | #######?##?###### ? ? ?#???## # ? ? | | #################### ? ####??#### # ? | | # """"" # ###????### # ? ? | | # """F"" # # ? #?# # | | !# " """ "" # # ? ### # | | # """ + # ? ### ###/###### | | # """ # # ### | | # " # ^ ^# ### | | ##### #^^ ^# ##? ########### | | ##### # # ### ########## | +----------------------------------------------------+ Best States ------------- Heat Dissipation 55 Energy Generation 70 Energy Capacity 840 Matter Stores 300 Matter Capacity 300 Sight Range 17 Robot Scan Range 26 Terrain Scan Range 20 Terrain Scan Density 210 Jamming Range 16 EM Shielding 4 Armor Coverage 900 Resistance: KI 40 Resistance: TH 50 Resistance: EX 45 Resistance: EM 95 Resistance: I 20 Resistance: S 20 Resistance: P 20 Weapon Shielding 33 Melee Speed Boost 30 Phase Shifting 20 Evasion (%) 87 Melee Accuracy 8 Armor Integrity Analysis 40 Recoil Reduction 6 Offensive Hacking 35 Defensive Hacking 20 Item Schematics ----------------- Exp. Phase Shifter | -1/Access | Scanalyzed Nanoactuators | -1/Access | Scanalyzed Adv. System Restoration Module | -1/Access | Scanalyzed Adv. Actuator Array | -1/Access | Scanalyzed Robot Schematics ------------------ None Fabricated ------------ Imp. Transmission Jammer | x2 | -4/Factory Alien Tech Used ----------------- Core Reset Matrix Achievements -------------- None Challenges ------------ None RPGLIKE | -11 -10 -10 -10 -7 -7 -5 -5 -5 -5 -5 -4 -3 -3 -2 -2 -1 --------- Run | Yrd Mat Min Sub Rec Scr Fac Ext Cet Arc Hub Fac Res Qua Res Tes Acc Levels Raised 33 | . 1 1 2 3 1 9 3 . 1 . 3 2 2 1 1 3 XP Earned 54852 | 4000 1890 2100 2376 4682 1095 13956 4183 758 584 1063 3851 3398 2517 2391 1466 4542 XP Spent 53195 | 3650 . 2700 1700 6050 1600 13760 4425 . 1615 . 4450 800 5245 . . 7200 Upgrades 79 | 6 . 3 1 4 2 30 9 . 2 . 8 1 8 . . 5 Power Slot 2 | . . . . . 1 . 1 . . . . . . . . . Propulsion Slot 4 | 1 . . . . . 2 1 . . . . . . . . . Utility Slot 11 | 3 . 1 1 2 . 2 . . . . . . 1 . . 1 Weapon Slot 4 | 1 . 1 . . 1 1 . . . . . . . . . . Core Integrity 13 | . . . . . . 6 3 . 1 . . . 3 . . . Heat Dissipation 5 | . . . . . . 2 1 . . . . . 2 . . . Energy Generation 1 | . . . . . . . . . . . . . 1 . . . Inventory Capacity 6 | 1 . 1 . 2 . 1 . . 1 . . . . . . . Sight Range 1 | . . . . . . . . . . . 1 . . . . . Sensor Range 4 | . . . . . . 4 . . . . . . . . . . Terrain Scan Density 2 | . . . . . . 2 . . . . . . . . . . Melee Accuracy 9 | . . . . . . 2 . . . . 4 . . . . 3 Hack Attack % 5 | . . . . . . 2 . . . . 1 1 . . . 1 Hack Defense % 4 | . . . . . . 2 . . . . 1 . 1 . . . KI Resistance % 4 | . . . . . . 2 2 . . . . . . . . . TH Resistance % 4 | . . . . . . 2 1 . . . 1 . . . . . Protomatter Created 5472 | . 243 236 424 113 . 494 520 . 90 69 292 526 660 331 284 1190 Integrity Restored 13120 | . 358 399 1167 465 . 1088 1688 141 25 186 662 824 1493 807 690 3127 Core 10036 | . 313 266 936 382 . 831 795 80 19 140 466 506 980 807 690 2825 Parts 3084 | . 45 133 231 83 . 257 893 61 6 46 196 318 513 . . 302 Protomatter Decayed 1888 | . 95 55 . . . 51 300 172 59 195 380 267 160 . . 154 Game ------ Seed MiningRagnarokLance Manual? 0 Play Time 04:52:20 Cumulative 232.5 hours Start 2024.11.06 @ 21:23:43 End 2024.11.11 @ 20:24:36 Sessions 11 Manual Loads 0 Difficulty Adventurer Special Mode Winter2019/RPGLIKE Game No. 80 Rogue 28 Adventurer 52 Explorer 0 Win Type 2 Total 15 Types 11/0/4/0/0/0/0/0/0 Lore% 65 Gallery% 68 Achievement% 64 Wizard Run 0 Options --------- Layout 0 ASCII 0 Keyboard 1 Movement Vi Keybinds 0 Fullscreen 2 Font 18/SmallcapsGlow Map View 76x50 Zoom Use 0% Tactical HUD 1 Map Filters NONE Filters NONE Steam X RUN: 45a7ac23-ab02-4c97-8235-4824483b181d